fUST/lending_fUST_20250924
["ID","MTS","AMOUNT","RATE_DAILY","PERIOD"]
[387258407,1758665432411,-453.96743086,0.00019178,2]
[387258408,1758665432421,-480.0,0.00019178,2]
[387258409,1758665432430,-480.0,0.00019178,2]
[387258410,1758665432440,-480.0,0.00019178,2]
[387258411,1758665432449,-480.0,0.00019178,2]
[387258412,1758665432459,-480.0,0.00019178,2]
[387258413,1758665432469,-480.0,0.00019178,2]
[387258414,1758665432478,-480.0,0.00019178,2]
[387258415,1758665432487,-480.0,0.00019178,2]
[387258416,1758665432497,-502.27935879,0.00019178,2]
[387258417,1758665432506,-480.0,0.00019178,2]
[387258418,1758665432515,-480.0,0.00019178,2]
[387258419,1758665432525,-480.0,0.00019178,2]
[387258420,1758665432534,-480.0,0.00019178,2]
[387258421,1758665432543,-480.0,0.00019178,2]
[387258422,1758665432553,-480.0,0.00019178,2]
[387258423,1758665432563,-480.0,0.00019178,2]
[387258424,1758665432572,-480.0,0.00019178,2]
[387258425,1758665432581,-480.0,0.00019178,2]
[387258426,1758665432590,-480.0,0.00019178,2]
[387258427,1758665432599,-480.0,0.00019178,2]
[387258428,1758665432608,-480.0,0.00019178,2]
[387258429,1758665432617,-480.0,0.00019178,2]
[387258430,1758665432627,-480.0,0.00019178,2]
[387258431,1758665432636,-480.0,0.00019178,2]
[387258432,1758665432645,-480.0,0.00019178,2]
[387258433,1758665432655,-480.0,0.00019178,2]
[387258434,1758665432664,-480.0,0.00019178,2]
[387258435,1758665432673,-480.0,0.00019178,2]
[387258436,1758665432683,-480.0,0.00019178,2]
[387258437,1758665432692,-480.0,0.00019178,2]
[387258438,1758665432701,-480.0,0.00019178,2]
[387258439,1758665432712,-480.0,0.00019178,2]
[387258440,1758665432721,-296.37451544,0.00019178,2]
[387258441,1758665432730,-480.0,0.00019178,2]
[387258442,1758665432740,-184.58070845,0.00019178,2]
[387258443,1758665432750,-480.0,0.00019178,2]
[387258444,1758665432759,-480.0,0.00019178,2]
[387258445,1758665432769,-480.0,0.00019178,2]
[387258446,1758665432779,-480.0,0.00019178,2]
[387258447,1758665432788,-480.0,0.00019178,2]
[387258448,1758665432799,-480.0,0.00019178,2]
[387258449,1758665432812,-480.0,0.00019178,2]
[387258450,1758665432822,-534.16928747,0.00019178,2]
[387258451,1758665432831,-480.0,0.00019178,2]
[387258452,1758665432841,-480.0,0.00019178,2]
[387258453,1758665432850,-480.0,0.00019178,2]
[387258454,1758665432861,-492.72663369,0.00019178,2]
[387258455,1758665432870,-480.0,0.00019178,2]
[387258456,1758665432881,-480.0,0.00019178,2]
[387258457,1758665432891,-480.0,0.00019178,2]
[387258458,1758665432901,-1000.0,0.00019178,2]
[387258459,1758665432910,-480.0,0.00019178,2]
[387258460,1758665432919,-480.0,0.00019178,2]
[387258461,1758665432929,-480.0,0.00019178,2]
[387258462,1758665432939,-480.0,0.00019178,2]
[387258463,1758665432949,-480.0,0.00019178,2]
[387258464,1758665432958,-480.0,0.00019178,2]
[387258465,1758665432968,-480.0,0.00019178,2]
[387258466,1758665432977,-480.0,0.00019178,2]
[387258467,1758665432987,-480.0,0.00019178,2]
[387258468,1758665432996,-480.0,0.00019178,2]
[387258469,1758665433005,-480.0,0.00019178,2]
[387258470,1758665433015,-480.0,0.00019178,2]
[387258471,1758665433024,-480.0,0.00019178,2]
[387258472,1758665433034,-500.0,0.00019351,2]
[387258473,1758665433043,-466.94756915,0.00019351,2]
[387258474,1758665433053,-500.0,0.00019351,2]
[387258475,1758665433063,-500.0,0.00019351,2]
[387258476,1758665433072,-500.0,0.00019351,2]
[387258477,1758665433082,-500.0,0.00019351,2]
[387258478,1758665433091,-500.0,0.00019351,2]
[387258479,1758665433101,-257.03339,0.00019351,2]
[387258480,1758665433110,-500.0,0.00019351,2]
[387258481,1758665433121,-14750.51070497,0.00019352,2]
[387258482,1758665433130,-500.0,0.0001945,2]
[387258483,1758665433140,-480.0,0.0001945,2]
[387258484,1758665433150,-500.0,0.00019451,2]
[387258485,1758665433161,-480.0,0.00019451,2]
[387258486,1758665433174,-480.0,0.00019451,2]
[387258487,1758665433183,-480.0,0.00019451,2]
[387258488,1758665433193,-480.0,0.00019451,2]
[387258489,1758665433202,-480.0,0.00019451,2]
[387258490,1758665433212,-480.0,0.00019451,2]
[387258491,1758665433221,-480.0,0.00019451,2]
[387258492,1758665433231,-480.0,0.00019451,2]
[387258493,1758665433241,-480.0,0.00019451,2]
[387258494,1758665433251,-480.0,0.00019451,2]
[387258495,1758665433260,-480.0,0.00019451,2]
[387258496,1758665433270,-480.0,0.00019451,2]
[387258497,1758665433279,-489.79504717,0.00019451,2]
[387258498,1758665433289,-513.37697103,0.00019451,2]
[387258499,1758665433298,-480.0,0.00019451,2]
[387258500,1758665433308,-480.0,0.00019451,2]
[387258501,1758665433318,-480.0,0.00019451,2]
[387258502,1758665433327,-480.0,0.00019451,2]
[387258503,1758665433336,-149.75872049,0.00019451,2]
[387258550,1758665437875,-330.24127951,0.00019451,2]
[387258551,1758665437885,-480.0,0.00019451,2]
[387258552,1758665437894,-54.87145552,0.00019451,2]
[387258553,1758665437932,-425.12854448,0.00019451,2]
[387258554,1758665437943,-480.0,0.00019451,2]
[387258555,1758665437952,-480.0,0.00019451,2]
[387258556,1758665437962,-480.0,0.00019451,2]
[387258557,1758665437971,-480.0,0.00019451,2]
[387258558,1758665437980,-480.0,0.00019451,2]
[387258559,1758665437990,-480.0,0.00019451,2]
[387258560,1758665437999,-480.0,0.00019451,2]
[387258561,1758665438009,-343.00108283,0.00019451,2]
[387258562,1758665438020,-136.99891717,0.00019451,2]
[387258563,1758665438029,-480.0,0.00019451,2]
[387258564,1758665438039,-480.0,0.00019451,2]
[387258565,1758665438048,-480.0,0.00019451,2]
[387258566,1758665438058,-480.0,0.00019451,2]
[387258567,1758665438067,-428.56357413,0.00019451,2]
[387258568,1758665438077,-480.0,0.00019451,2]
[387258569,1758665438086,-481.56089742,0.00019451,2]
[387258570,1758665438095,-449.21897581,0.00019451,2]
[387258571,1758665438104,-480.0,0.00019451,2]
[387258572,1758665438114,-480.0,0.00019451,2]
[387258573,1758665438123,-480.0,0.00019451,2]
[387258574,1758665438132,-480.0,0.00019451,2]
[387258575,1758665438142,-480.0,0.00019451,2]
[387258576,1758665438152,-480.0,0.00019451,2]
[387258578,1758665438166,-481.96166855,0.00019451,2]
[387258580,1758665438176,-485.13310683,0.00019451,2]
[387258581,1758665438185,-480.0,0.00019451,2]
[387258582,1758665438195,-480.0,0.00019451,2]
[387258583,1758665438204,-480.0,0.00019451,2]
[387258584,1758665438213,-520.92651559,0.00019451,2]
[387258585,1758665438222,-480.0,0.00019451,2]
[387258586,1758665438232,-480.0,0.00019451,2]
[387258587,1758665438243,-440.85928387,0.00019451,2]
[387258588,1758665438253,-491.61909584,0.00019451,2]
[387258589,1758665438263,-480.0,0.00019451,2]
[387258590,1758665438274,-1000.0,0.00019451,2]
[387258591,1758665438283,-480.0,0.00019451,2]
[387258592,1758665438293,-480.0,0.00019451,2]
[387258593,1758665438303,-480.0,0.00019451,2]
[387258594,1758665438314,-480.0,0.00019451,2]
[387258595,1758665438323,-480.0,0.00019451,2]
[387258596,1758665438333,-108.41714231,0.00019451,2]
[387258597,1758665438346,-371.58285769,0.00019451,2]
[387258598,1758665438356,-480.0,0.00019451,2]
[387258599,1758665438366,-480.0,0.00019451,2]
[387258600,1758665438375,-480.0,0.00019451,2]
[387258601,1758665438385,-480.0,0.00019451,2]
[387258602,1758665438394,-480.0,0.00019451,2]
[387258603,1758665438404,-480.0,0.00019451,2]
[387258604,1758665438413,-485.18833999,0.00019451,2]
[387258605,1758665438422,-480.0,0.00019451,2]
[387258606,1758665438431,-480.0,0.00019451,2]
[387258607,1758665438440,-480.0,0.00019451,2]
[387258608,1758665438450,-480.0,0.00019451,2]
[387258609,1758665438460,-357.39055622,0.00019451,2]
[387258610,1758665438475,-165.49744958,0.00019451,2]
[387258611,1758665438484,-493.26783011,0.00019451,2]
[387258612,1758665438493,-480.0,0.00019451,2]
[387258613,1758665438502,-480.0,0.00019451,2]
[387258614,1758665438512,-480.0,0.00019451,2]
[387258615,1758665438521,-480.0,0.00019451,2]
[387258616,1758665438530,-480.0,0.00019451,2]
[387258617,1758665438540,-480.0,0.00019451,2]
[387258618,1758665438549,-480.0,0.00019451,2]
[387258619,1758665438558,-480.0,0.00019451,2]
[387258620,1758665438567,-364.86838097,0.00019451,2]
[387258621,1758665438579,-115.13161903,0.00019451,2]
[387258622,1758665438589,-480.0,0.00019451,2]
[387258623,1758665438598,-304.75493557,0.00019451,2]
[387258624,1758665438609,-175.24506443,0.00019451,2]
[387258625,1758665438618,-422.11429916,0.00019451,2]
[387258626,1758665438628,-480.0,0.00019451,2]
[387258627,1758665438638,-480.0,0.00019452,2]
[387258628,1758665438647,-411.52393761,0.00019452,2]
[387258629,1758665438657,-480.0,0.00019452,2]
[387258630,1758665438667,-480.0,0.00019452,2]
[387258631,1758665438676,-66.87562349,0.00019725,2]
[387258881,1758665442125,-500.0,0.00019178,2]
[387258882,1758665442135,-500.0,0.0001945,2]
[387258883,1758665442143,-500.0,0.0001945,2]
[387258884,1758665442153,-413.12437651,0.00019725,2]
[387258886,1758665442163,-598.1,0.00019726,2]
[387258887,1758665442172,-480.0,0.00019726,2]
[387258889,1758665442181,-429.43497918,0.000198,2]
[387258891,1758665442190,-500.0,0.00019898,2]
[387258893,1758665442199,-2019.80243109,0.000199,2]
[387258895,1758665442208,-234.50999999,0.0002,2]
[387258897,1758665442218,-1736.35,0.00020417,2]
[387258901,1758665442227,-480.0,0.00020422,2]
[387258903,1758665442236,-233.58652103,0.0002049,2]
[387258905,1758665442246,-160.0,0.0002049,2]
[387258907,1758665442255,-480.0,0.00020696,2]
[387258909,1758665442264,-300.0,0.00020898,2]
[387258911,1758665442273,-297.58717402,0.00020898,2]
[387258915,1758665442287,-122.41282598,0.00020898,2]
[387258917,1758665442295,-480.0,0.0002097,2]
[387258919,1758665442305,-480.0,0.0002097,2]
[387258921,1758665442314,-480.0,0.0002097,2]
[387258924,1758665442322,-451.33717741,0.00020971,2]
[387258927,1758665442331,-2019.802431,0.00020972,2]
[387258929,1758665442340,-924.0492662,0.00020999,2]
[387258931,1758665442354,-275.9507338,0.00020999,2]
[387258933,1758665442363,-429.43497916,0.0002113,2]
[387258935,1758665442372,-150.0,0.00021203,2]
[387258937,1758665442382,-480.0,0.00021244,2]
[387258939,1758665442391,-480.0,0.00021244,2]
[387258941,1758665442400,-480.0,0.00021518,2]
[387258943,1758665442410,-480.0,0.00021518,2]
[387258945,1758665442419,-480.0,0.00021792,2]
[387258947,1758665442429,-480.0,0.00021792,2]
[387258949,1758665442437,-2019.802431,0.00022044,2]
[387258951,1758665442447,-480.0,0.00022066,2]
[387258953,1758665442456,-198.98,0.00022066,2]
[387258955,1758665442465,-1486.3,0.00022264,10]
[387258957,1758665442475,-3472.7,0.00022274,2]
[387258959,1758665442483,-480.0,0.0002234,2]
[387258961,1758665442493,-429.43497916,0.0002246,2]
[387258963,1758665442505,-483.37598881,0.00022614,2]
[387258964,1758665442514,-500.0,0.0002265,2]
[387258965,1758665442524,-587.0,0.00022775,2]
[387258966,1758665442533,-160.0,0.00023,2]
[387258967,1758665442541,-2019.802431,0.00023116,2]
[387258968,1758665442550,-1000.0,0.00023198,2]
[387258969,1758665442559,-767.54276187,0.00023287,2]
[387258970,1758665442573,-758.17723813,0.00023287,2]
[387258971,1758665442583,-663.66590835,0.00023628,5]
[387258972,1758665442592,-1500.0,0.00023746,2]
[387258973,1758665442602,-429.43497916,0.0002379,2]
[387258974,1758665442611,-216.638,0.00023946,5]
[387258975,1758665442620,-5209.05,0.0002413,2]
[387258976,1758665442629,-2019.802431,0.00024187,2]
[387258977,1758665442639,-2000.0,0.00024294,2]
[387258978,1758665442648,-1354.7087749,0.0002446,2]
[387258979,1758665442658,-380.0,0.00024658,2]
[387258980,1758665442668,-490.98,0.0002479,3]
[387258981,1758665442677,-2000.0,0.000248,2]
[387258982,1758665442686,-1499.49069621,0.000248,2]
[387258983,1758665442695,-193.0,0.0002482,2]
[387258984,1758665442704,-2500.0,0.00024842,2]
[387258985,1758665442713,-826.035,0.000249,2]
[387258986,1758665442723,-1060.80388038,0.000249,2]
[387258987,1758665442734,-17214.7202934,0.000249,2]
[387258988,1758665442946,-304.67349475,0.0001945,2]
[387258989,1758665442955,-500.0,0.0001945,2]
[387258990,1758665442965,-145.32650525,0.0001945,2]
[387258991,1758665443004,-354.67349475,0.0001945,2]
[387258992,1758665443014,-500.0,0.0001945,2]
[387258993,1758665443023,-500.0,0.0001945,2]
[387258994,1758665443033,-510015.75810638,0.000249,2]
[387258995,1758665443044,-806.06153892,0.000249,2]
[387259003,1758665445885,-442.74557649,0.00019178,2]
[387259280,1758665666700,500.0,0.00029204,120]
[387259281,1758665689382,500.0,0.00029204,120]
[387259282,1758665703149,500.0,0.00029204,120]
[387259283,1758665710393,500.0,0.00029195,120]
[387259284,1758665718361,500.0,0.00029195,120]
[387259285,1758665724332,500.0,0.00029195,120]
[387259286,1758665741254,500.0,0.00029195,120]
[387259287,1758665761404,500.0,0.00029195,120]
[387259288,1758665768809,500.0,0.00029195,120]
[387259289,1758665803590,500.0,0.00029195,120]
[387259293,1758665863357,523.61,0.00029195,120]
[387259294,1758666144384,185.0,0.00025273,120]
[387259295,1758666145629,185.0,0.00026536,120]
[387259351,1758666631941,-1803.62691248,0.00019078,2]
[387259354,1758666631951,-1200.0,0.00019176,2]
[387259356,1758666631960,-124.41792636,0.00019176,2]
[387259358,1758666631971,-175.58207364,0.00019176,2]
[387259360,1758666631981,-33131.32525486,0.00019177,2]
[387259362,1758666631990,-306.33704333,0.00019177,2]
[387259365,1758666632001,-262.48949475,0.00019177,2]
[387259367,1758666632010,-500.0,0.00019177,2]
[387259369,1758666632020,-500.0,0.00019177,2]
[387259371,1758666632029,-500.0,0.00019177,2]
[387259372,1758666632039,-500.0,0.00019177,2]
[387259374,1758666632049,-500.0,0.00019177,2]
[387259376,1758666632058,-500.0,0.00019177,2]
[387259378,1758666632068,-500.0,0.00019177,2]
[387259380,1758666632078,-516.39976431,0.00019177,2]
[387259382,1758666632088,-500.0,0.00019177,2]
[387259384,1758666632097,-300.0,0.00019177,2]
[387259386,1758666632107,-37.25442351,0.00019178,2]
[387259389,1758666632117,-480.0,0.00019178,2]
[387259391,1758666632127,-480.0,0.00019178,2]
[387259393,1758666632136,-480.0,0.00019178,2]
[387259395,1758666632145,-480.0,0.00019178,2]
[387259397,1758666632154,-480.0,0.00019178,2]
[387259398,1758666632163,-490.14471729,0.00019178,2]
[387259401,1758666632172,-480.0,0.00019178,2]
[387259403,1758666632181,-480.0,0.00019178,2]
[387259404,1758666632191,-480.0,0.00019178,2]
[387259407,1758666632200,-480.0,0.00019178,2]
[387259408,1758666632210,-480.0,0.00019178,2]
[387259410,1758666632219,-480.0,0.00019178,2]
[387259412,1758666632228,-480.0,0.00019178,2]
[387259414,1758666632237,-575.55950337,0.00019178,2]
[387259415,1758666632247,-481.44506118,0.00019178,2]
[387259417,1758666632256,-486.64863469,0.00019178,2]
[387259419,1758666632265,-480.0,0.00019178,2]
[387259421,1758666632275,-480.0,0.00019178,2]
[387259423,1758666632284,-480.0,0.00019178,2]
[387259425,1758666632294,-480.0,0.00019178,2]
[387259426,1758666632303,-480.0,0.00019178,2]
[387259428,1758666632313,-480.0,0.00019178,2]
[387259430,1758666632322,-480.0,0.00019178,2]
[387259431,1758666632332,-480.0,0.00019178,2]
[387259432,1758666632349,-484.57,0.00019178,2]
[387259433,1758666632369,-480.93644346,0.00019178,2]
[387259434,1758666632390,-480.0,0.00019178,2]
[387259436,1758666632410,-480.0,0.00019178,2]
[387259437,1758666632431,-480.0,0.00019178,2]
[387259439,1758666632452,-480.0,0.00019178,2]
[387259441,1758666632473,-480.0,0.00019178,2]
[387259443,1758666632493,-480.0,0.00019178,2]
[387259445,1758666632517,-381.77963795,0.00019178,2]
[387259446,1758666632538,-480.0,0.00019178,2]
[387259448,1758666632558,-480.0,0.00019178,2]
[387259449,1758666632568,-402.7142657,0.00019178,2]
[387259450,1758666632577,-480.0,0.00019178,2]
[387259451,1758666632587,-480.0,0.00019178,2]
[387259452,1758666632596,-480.0,0.00019178,2]
[387259453,1758666632605,-480.0,0.00019178,2]
[387259454,1758666632615,-480.0,0.00019178,2]
[387259455,1758666632624,-449.71260328,0.00019178,2]
[387259456,1758666632633,-480.0,0.00019178,2]
[387259457,1758666632643,-563.99,0.00019178,2]
[387259458,1758666632652,-480.0,0.00019178,2]
[387259459,1758666632661,-480.0,0.00019178,2]
[387259460,1758666632671,-480.0,0.00019178,2]
[387259461,1758666632680,-480.0,0.00019178,2]
[387259462,1758666632690,-480.0,0.00019178,2]
[387259463,1758666632699,-480.0,0.00019178,2]
[387259464,1758666632709,-480.0,0.00019178,2]
[387259465,1758666632718,-480.0,0.00019178,2]
[387259466,1758666632727,-480.0,0.00019178,2]
[387259467,1758666632736,-480.0,0.00019178,2]
[387259468,1758666632746,-505.72866044,0.00019178,2]
[387259469,1758666632755,-480.0,0.00019178,2]
[387259470,1758666632764,-480.0,0.00019178,2]
[387259471,1758666632774,-428.63170102,0.00019178,2]
[387259472,1758666632791,-51.36829898,0.00019178,2]
[387259473,1758666632801,-480.0,0.00019178,2]
[387259474,1758666632811,-414.87504824,0.00019178,2]
[387259475,1758666632820,-480.0,0.00019178,2]
[387259476,1758666632829,-480.0,0.00019178,2]
[387259477,1758666632839,-480.0,0.00019178,2]
[387259478,1758666632848,-480.0,0.00019178,2]
[387259479,1758666632858,-480.0,0.00019178,2]
[387259480,1758666632867,-480.0,0.00019178,2]
[387259481,1758666632876,-480.0,0.00019178,2]
[387259482,1758666632885,-480.0,0.00019178,2]
[387259483,1758666632895,-500.0,0.00019178,2]
[387259484,1758666632906,-500.0,0.00019178,2]
[387259485,1758666632915,-500.0,0.00019178,2]
[387259486,1758666632925,-480.0,0.00019178,2]
[387259487,1758666632935,-480.0,0.00019178,2]
[387259488,1758666632947,-480.0,0.00019178,2]
[387259489,1758666632956,-480.0,0.00019178,2]
[387259490,1758666632966,-500.0,0.00019178,2]
[387259491,1758666632975,-500.0,0.00019178,2]
[387259492,1758666632985,-480.0,0.00019178,2]
[387259493,1758666632994,-480.0,0.00019178,2]
[387259494,1758666633004,-480.0,0.00019178,2]
[387259495,1758666633015,-480.0,0.00019178,2]
[387259496,1758666633024,-480.0,0.00019178,2]
[387259497,1758666633034,-480.0,0.00019178,2]
[387259498,1758666633044,-480.0,0.00019178,2]
[387259499,1758666633054,-480.0,0.00019178,2]
[387259500,1758666633064,-480.0,0.00019178,2]
[387259501,1758666633074,-160.0,0.00019178,2]
[387259502,1758666633085,-480.0,0.00019178,2]
[387259503,1758666633095,-480.0,0.00019178,2]
[387259504,1758666633104,-480.0,0.00019178,2]
[387259505,1758666633114,-559.66020957,0.00019178,2]
[387259506,1758666633123,-480.0,0.00019178,2]
[387259507,1758666633133,-480.0,0.00019178,2]
[387259508,1758666633143,-346.05391457,0.00019178,2]
[387259509,1758666633156,-133.94608543,0.00019178,2]
[387259510,1758666633165,-480.0,0.00019178,2]
[387259511,1758666633175,-480.0,0.00019178,2]
[387259512,1758666633184,-480.0,0.00019178,2]
[387259513,1758666633194,-480.0,0.00019178,2]
[387259514,1758666633203,-480.0,0.00019178,2]
[387259515,1758666633214,-480.0,0.00019178,2]
[387259516,1758666633223,-480.0,0.00019178,2]
[387259517,1758666633233,-480.0,0.00019178,2]
[387259518,1758666633243,-480.0,0.00019178,2]
[387259519,1758666633253,-480.0,0.00019178,2]
[387259520,1758666633263,-480.0,0.00019178,2]
[387259521,1758666633272,-480.0,0.00019178,2]
[387259522,1758666633285,-480.0,0.00019178,2]
[387259523,1758666633294,-480.0,0.00019178,2]
[387259524,1758666633305,-480.0,0.00019178,2]
[387259525,1758666633317,-480.0,0.00019178,2]
[387259526,1758666633327,-480.0,0.00019178,2]
[387259527,1758666633337,-480.0,0.00019178,2]
[387259528,1758666633346,-480.0,0.00019178,2]
[387259529,1758666633356,-480.0,0.00019178,2]
[387259530,1758666633366,-480.0,0.00019178,2]
[387259531,1758666633376,-480.0,0.00019178,2]
[387259532,1758666633385,-480.0,0.00019178,2]
[387259533,1758666633396,-480.0,0.00019178,2]
[387259534,1758666633406,-480.0,0.00019178,2]
[387259535,1758666633415,-480.0,0.00019178,2]
[387259536,1758666633424,-480.0,0.00019178,2]
[387259537,1758666633434,-271.23251248,0.00019178,2]
[387259538,1758666633443,-480.0,0.00019178,2]
[387259539,1758666633453,-480.0,0.00019178,2]
[387259540,1758666633462,-480.0,0.00019178,2]
[387259541,1758666633472,-480.0,0.00019178,2]
[387259542,1758666633482,-480.0,0.00019178,2]
[387259543,1758666633491,-480.0,0.00019178,2]
[387259544,1758666633501,-480.0,0.00019178,2]
[387259545,1758666633510,-480.0,0.00019178,2]
[387259546,1758666633520,-480.0,0.00019178,2]
[387259547,1758666633530,-480.0,0.00019178,2]
[387259548,1758666633544,-480.0,0.00019178,2]
[387259549,1758666633556,-480.0,0.00019178,2]
[387259550,1758666633565,-480.0,0.00019178,2]
[387259551,1758666633575,-480.0,0.00019178,2]
[387259552,1758666633586,-480.0,0.00019178,2]
[387259553,1758666633595,-480.0,0.00019178,2]
[387259554,1758666633606,-480.0,0.00019178,2]
[387259555,1758666633617,-480.0,0.00019178,2]
[387259556,1758666633626,-480.0,0.00019178,2]
[387259557,1758666633636,-450.50308987,0.00019178,2]
[387259558,1758666633645,-480.0,0.00019178,2]
[387259559,1758666633655,-480.0,0.00019178,2]
[387259560,1758666633665,-480.0,0.00019178,2]
[387259561,1758666633674,-480.0,0.00019178,2]
[387259562,1758666633684,-480.0,0.00019178,2]
[387259563,1758666633693,-480.0,0.00019178,2]
[387259564,1758666633703,-480.0,0.00019178,2]
[387259565,1758666633712,-1044.43,0.00019178,2]
[387259566,1758666633722,-480.0,0.00019178,2]
[387259567,1758666633731,-480.0,0.00019178,2]
[387259568,1758666633741,-480.0,0.00019178,2]
[387259569,1758666633750,-480.0,0.00019178,2]
[387259570,1758666633760,-480.0,0.00019178,2]
[387259571,1758666633769,-480.0,0.00019178,2]
[387259572,1758666633778,-480.0,0.00019178,2]
[387259573,1758666633788,-480.0,0.00019178,2]
[387259574,1758666633798,-480.0,0.00019178,2]
[387259575,1758666633807,-480.0,0.00019178,2]
[387259576,1758666633817,-480.0,0.00019178,2]
[387259577,1758666633827,-480.0,0.00019178,2]
[387259578,1758666633837,-480.0,0.00019178,2]
[387259579,1758666633846,-480.0,0.00019178,2]
[387259580,1758666633856,-1437.73,0.00019178,2]
[387259581,1758666633865,-480.0,0.00019178,2]
[387259582,1758666633875,-480.0,0.00019178,2]
[387259583,1758666633884,-480.0,0.00019178,2]
[387259584,1758666633894,-480.0,0.00019178,2]
[387259585,1758666633903,-480.0,0.00019178,2]
[387259586,1758666633913,-480.0,0.00019178,2]
[387259587,1758666633922,-480.0,0.00019178,2]
[387259588,1758666633932,-480.0,0.00019178,2]
[387259589,1758666633941,-480.0,0.00019178,2]
[387259590,1758666633950,-480.0,0.00019178,2]
[387259591,1758666633959,-480.0,0.00019178,2]
[387259592,1758666633969,-480.0,0.00019178,2]
[387259593,1758666633978,-480.0,0.00019178,2]
[387259594,1758666633988,-480.0,0.00019178,2]
[387259595,1758666633997,-270.54964023,0.00019178,2]
[387259627,1758666638110,-209.45035977,0.00019178,2]
[387259628,1758666638120,-480.0,0.00019178,2]
[387259629,1758666638130,-480.0,0.00019178,2]
[387259630,1758666638140,-480.0,0.00019178,2]
[387259631,1758666638149,-480.0,0.00019178,2]
[387259632,1758666638159,-480.0,0.00019178,2]
[387259633,1758666638168,-480.0,0.00019178,2]
[387259634,1758666638177,-480.0,0.00019178,2]
[387259635,1758666638187,-500.0,0.00019178,2]
[387259636,1758666638196,-480.0,0.00019178,2]
[387259637,1758666638205,-500.0,0.00019178,2]
[387259638,1758666638214,-480.0,0.00019178,2]
[387259639,1758666638223,-480.0,0.00019178,2]
[387259640,1758666638232,-480.0,0.00019178,2]
[387259641,1758666638241,-480.0,0.00019178,2]
[387259642,1758666638250,-480.0,0.00019178,2]
[387259643,1758666638259,-500.0,0.00019178,2]
[387259644,1758666638269,-500.0,0.00019178,2]
[387259645,1758666638279,-480.0,0.00019178,2]
[387259646,1758666638288,-485.51446281,0.00019178,2]
[387259647,1758666638297,-480.0,0.00019178,2]
[387259648,1758666638306,-480.0,0.00019178,2]
[387259649,1758666638315,-480.0,0.00019178,2]
[387259650,1758666638325,-480.0,0.00019178,2]
[387259651,1758666638334,-480.0,0.00019178,2]
[387259652,1758666638343,-480.0,0.00019178,2]
[387259653,1758666638352,-480.0,0.00019178,2]
[387259654,1758666638361,-480.0,0.00019178,2]
[387259655,1758666638370,-480.0,0.00019178,2]
[387259656,1758666638380,-480.0,0.00019178,2]
[387259657,1758666638389,-482.54900974,0.00019178,2]
[387259658,1758666638399,-480.0,0.00019178,2]
[387259659,1758666638409,-480.0,0.00019178,2]
[387259660,1758666638418,-480.0,0.00019178,2]
[387259661,1758666638428,-480.0,0.00019178,2]
[387259662,1758666638437,-480.0,0.00019178,2]